[Event "FIDE World School-ch O-11 2025"]
[Site "Vrnjacka Banja"]
[Date "2025.03.22"]
[Round "3.1"]
[White "Jumanazarov, Ibrohim"]
[Black "Uzdemir, Ali Poyraz"]
[Result "0-1"]
[Annotator "NA RC"]
[ECO "B67"]
[WhiteElo "1869"]
[BlackElo "2184"]
[PlyCount "186"]
[EventDate "2025.03.19"]
[EventType "swiss"]
[EventCountry "SRB"]
[SourceTitle "playchess.com"]
[Source "ChessBase"]
[SourceQuality "1"]
[TimeControl "5400+30"]

1. e4 {[%emt 0:02:37]} c5 {[%emt 0:00:13]} 2. Nf3 {[%emt 0:00:39]} d6 {[%emt 0:00:02]} 3. d4 {[%emt 0:00:37]} cxd4 {[%emt 0:00:05]} 4. Nxd4 {[%emt 0:00:09]} Nf6 {[%emt 0:00:03]} 5. Nc3 {[%emt 0:00:12]} Nc6 {[%emt 0:00:03]} 6. Bg5 {[%emt 0:00:28]} e6 {[%emt 0:00:51]} 7. Qd2 {[%emt 0:00:32]} a6 {[%emt 0:00:11]} 8. O-O-O {[%emt 0:03:07]} Bd7 {[%emt 0:00:48]} 9. Nxc6 {[%emt 0:03:54]} Bxc6 {[%emt 0:00:31]} 10. f3 {[%emt 0:00:18]} b5 {[%emt 0:04:51]} 11. Ne2 {[%emt 0:03:33]} h6 {[%emt 0:04:30]} 12. Bf4 {[%emt 0:08:59]} d5 {[%emt 0:02:16]} 13. Nd4 {[%emt 0:04:19]} Bb7 {[%emt 0:00:38]} (13... Qc8 $11) 14. e5 {[%emt 1:08:06]} Nd7 {[%emt 0:00:39]} 15. Bd3 $11 {[%emt 0:00:00]} Qb6 {[%emt 0:02:18]} 16. Be2 {[%emt 0:00:00]} Rc8 {[%emt 0:08:02]} 17. Kb1 {[%emt 0:00:00]} Qc7 {[%emt 0:13:25]} 18. Rhe1 {[%emt 0:00:00]} Nb6 {[%emt 0:00:54]} 19. Bf1 {[%emt 0:00:00]} Nc4 {[%emt 0:02:24]} 20. Bxc4 {[%emt 0:00:00]} Qxc4 {[%emt 0:00:30]} 21. Qd3 {[%emt 0:00:00]} Bb4 {[%emt 0:03:41]} 22. Re2 {[%emt 0:00:00]} a5 {[%emt 0:06:15]} 23. Qxc4 {[%emt 0:00:00]} Rxc4 {[%emt 0:01:29]} 24. Be3 {[%emt 0:00:00]} Ba6 {[%emt 0:01:22]} 25. f4 {[%emt 0:00:00]} g6 {[%emt 0:05:19]} 26. Rf2 {[%emt 0:00:00]} h5 {[%emt 0:03:06]} 27. c3 {[%emt 0:00:00]} Be7 {[%emt 0:00:24]} 28. Nb3 {[%emt 0:00:00]} Bd8 {[%emt 0:18:04]} 29. Bd4 {[%emt 0:00:00]} Bc8 {[%emt 0:03:23]} 30. Nc5 {[%emt 0:02:43]} Be7 {[%emt 0:01:32]} 31. Nb3 {[%emt 0:00:12]} a4 {[%emt 0:06:52]} 32. Nd2 {[%emt 0:00:06]} Rc6 {[%emt 0:00:26]} 33. a3 {[%emt 0:00:03]} Ba6 {[%emt 0:01:31]} 34. g3 {[%emt 0:02:09]} Kd7 {[%emt 0:00:45]} 35. h4 {[%emt 0:00:43]} Rhc8 {[%emt 0:01:03]} 36. Nf1 {[%emt 0:00:57]} b4 {[%emt 0:02:34]} 37. axb4 {[%emt 0:01:13]} Bc4 {[%emt 0:01:55]} 38. Nd2 {[%emt 0:01:19]} Bd3+ {[%emt 0:00:09]} 39. Ka2 {[%emt 0:00:49]} Rb8 {[%emt 0:01:37]} 40. Ka3 {[%emt 0:00:43]} Bc2 {[%emt 0:00:56]} 41. Re1 {[%emt 0:00:48]} Rc7 {[%emt 0:01:11]} 42. b3 {[%emt 0:00:56]} axb3 {[%emt 0:01:15]} 43. Nxb3 {[%emt 0:00:02]} Bd3 {[%emt 0:00:32]} 44. Ra1 {[%emt 0:01:23]} Rc4 {[%emt 0:01:31]} 45. Bc5 {[%emt 0:00:33]} Rxc3 {[%emt 0:00:24]} 46. Bxe7 {[%emt 0:00:45]} Kxe7 {[%emt 0:00:17]} 47. Rc1 {[%emt 0:00:30]} Rxc1 {[%emt 0:00:13]} 48. Nxc1 {[%emt 0:00:06]} Bc4 {[%emt 0:00:02]} 49. Nb3 {[%emt 0:00:39]} Kd7 {[%emt 0:01:28]} 50. Na5 {[%emt 0:00:20]} Ra8 {[%emt 0:01:06]} 51. Kb2 {[%emt 0:00:28]} Rb8 {[%emt 0:00:41]} 52. Kc3 {[%emt 0:00:28]} Bb5 {[%emt 0:00:27]} 53. Nb3 {[%emt 0:00:53]} Ra8 {[%emt 0:00:09]} 54. Kb2 {[%emt 0:00:37]} Rc8 {[%emt 0:00:33]} 55. Nc5+ {[%emt 0:00:26]} Kc6 {[%emt 0:00:14]} 56. Nb3 {[%emt 0:00:28]} Kb6 {[%emt 0:00:06]} 57. Rd2 {[%emt 0:00:27]} Bc4 {[%emt 0:00:28]} 58. Kc3 {[%emt 0:00:40]} Ra8 {[%emt 0:00:49]} 59. Na5 {[%emt 0:00:25]} Bb5 {[%emt 0:00:13]} 60. Kb3 {[%emt 0:00:36]} Rc8 {[%emt 0:00:11]} 61. Kb2 {[%emt 0:00:26]} Ba4 {[%emt 0:00:21]} 62. Nb3 {[%emt 0:00:33]} Kb5 {[%emt 0:00:35]} 63. Nc5 {[%emt 0:00:29]} Kxb4 {[%emt 0:00:19]} 64. Nd3+ {[%emt 0:00:30]} Kc4 {[%emt 0:00:56]} 65. Ne1 {[%emt 0:00:32]} Rb8+ {[%emt 0:00:24]} 66. Kc1 {[%emt 0:00:12]} Bb3 {[%emt 0:00:19]} 67. Rd3 {[%emt 0:00:47]} Ra8 {[%emt 0:00:08]} 68. Kd2 {[%emt 0:00:27]} d4 {[%emt 0:01:59]} 69. Ke2 {[%emt 0:00:30]} Ra2+ {[%emt 0:01:13]} 70. Rd2 {[%emt 0:00:26]} Ra1 {[%emt 0:00:54]} 71. Nf3 {[%emt 0:00:33]} Ra2 {[%emt 0:00:46]} 72. Rxa2 {[%emt 0:00:11]} Bxa2 {[%emt 0:00:03]} 73. Kd2 {[%emt 0:00:04]} Kd5 {[%emt 0:00:28]} 74. Ng5 {[%emt 0:00:25]} Bb1 {[%emt 0:00:56]} 75. Nxf7 {[%emt 0:00:47]} Ke4 {[%emt 0:00:05]} 76. Ng5+ {[%emt 0:00:07]} Kf5 {[%emt 0:00:03]} 77. Nf3 {[%emt 0:01:28]} Ke4 {[%emt 0:01:17]} 78. Ng5+ {[%emt 0:00:26]} Kf5 {[%emt 0:00:05]} 79. Nf3 {[%emt 0:00:08]} Kg4 {[%emt 0:01:04]} 80. Nxd4 {[%emt 0:00:15]} Ba2 {[%emt 0:00:06]} 81. Ke3 {[%emt 0:01:13]} Kxg3 {[%emt 0:00:05]} 82. Nc6 {[%emt 0:00:32]} Kxh4 {[%emt 0:00:13]} 83. Ne7 {[%emt 0:00:13]} Bb1 {[%emt 0:00:03]} 84. f5 {[%emt 0:00:46]} Bxf5 {[%emt 0:00:37]} 85. Kf4 {[%emt 0:00:12]} g5+ {[%emt 0:00:05]} 86. Kf3 {[%emt 0:00:42]} Bh7 {[%emt 0:00:12]} 87. Nc6 {[%emt 0:00:33]} Kh3 {[%emt 0:00:14]} 88. Nd4 {[%emt 0:00:33]} Bg8 {[%emt 0:00:22]} 89. Kf2 {[%emt 0:00:25]} g4 {[%emt 0:00:23]} 90. Ne2 {[%emt 0:00:35]} h4 {[%emt 0:00:16]} 91. Kf1 {[%emt 0:00:32]} Kh2 {[%emt 0:00:14]} 92. Kf2 {[%emt 0:00:26]} Bh7 {[%emt 0:00:18]} 93. Nf4 {[%emt 0:00:23]} Bf5 {[%emt 0:00:09]} 0-1

[Event "FIDE World School-ch O-11 2025"]
[Site "Vrnjacka Banja"]
[Date "2025.03.22"]
[Round "3.2"]
[White "Kiringoda, Thehas Rithmitha"]
[Black "Ivanovic, Leonid"]
[Result "0-1"]
[Annotator "NA RC"]
[ECO "B51"]
[WhiteElo "1868"]
[BlackElo "2015"]
[PlyCount "120"]
[EventDate "2025.03.19"]
[EventType "swiss"]
[EventCountry "SRB"]
[SourceTitle "playchess.com"]
[Source "ChessBase"]
[SourceQuality "1"]
[TimeControl "5400+30"]

1. e4 {[%emt 0:00:10]} c5 {[%emt 0:00:08]} 2. Nf3 {[%emt 0:00:10]} d6 {[%emt 0:01:14]} 3. Bb5+ {[%emt 0:00:13]} Nd7 {[%emt 0:00:43]} 4. O-O {[%emt 0:01:58]} Ngf6 {[%emt 0:01:38]} 5. Re1 {[%emt 0:00:34]} a6 {[%emt 0:00:46]} 6. Bf1 {[%emt 0:00:09]} b5 {[%emt 0:03:01]} 7. d4 {[%emt 0:00:28]} cxd4 {[%emt 0:00:14]} 8. Nxd4 {[%emt 0:14:46]} Bb7 {[%emt 0:05:24]} 9. Bd3 {[%emt 0:01:18]} g6 {[%emt 0:03:18]} 10. Bg5 {[%emt 0:05:44]} Bg7 {[%emt 0:02:32]} 11. Nd2 {[%emt 0:01:00]} h6 {[%emt 0:02:27]} 12. Bxf6 {[%emt 0:00:25]} Bxf6 {[%emt 0:00:24]} 13. N2f3 {[%emt 0:00:32]} O-O {[%emt 0:00:36]} 14. c3 {[%emt 0:03:09]} Qb6 $15 {[%emt 0:06:41]} 15. Qd2 {[%emt 0:04:08]} Kh7 {[%emt 0:00:20]} 16. Nc2 {[%emt 0:04:17]} a5 {[%emt 0:04:13]} 17. Ne3 {[%emt 0:03:18]} Nc5 {[%emt 0:03:26]} 18. Nd5 {[%emt 0:07:04]} Bxd5 {[%emt 0:00:38]} 19. exd5 {[%emt 0:00:02]} b4 {[%emt 0:02:50]} 20. Rab1 {[%emt 0:02:24]} a4 {[%emt 0:21:57]} 21. Bf1 {[%emt 0:12:31]} Rfb8 {[%emt 0:05:17]} 22. c4 {[%emt 0:05:18]} a3 {[%emt 0:02:52]} 23. bxa3 {[%emt 0:20:09]} Rxa3 {[%emt 0:02:48]} 24. Nd4 {[%emt 0:01:29]} Rba8 {[%emt 0:19:30]} 25. Rxb4 {[%emt 0:03:11]} Qc7 {[%emt 0:00:58]} 26. Nb5 {[%emt 0:00:49]} Qa5 {[%emt 0:01:30]} 27. Nxa3 {[%emt 0:00:07]} Qxa3 {[%emt 0:00:01]} 28. Re3 {[%emt 0:01:19]} Qxa2 {[%emt 0:00:41]} 29. Qxa2 {[%emt 0:00:01]} Rxa2 {[%emt 0:00:01]} 30. g3 {[%emt 0:01:18]} Bd4 {[%emt 0:00:36]} 31. Rf3 {[%emt 0:00:44]} f5 {[%emt 0:01:18]} 32. g4 {[%emt 0:03:09]} Ne4 {[%emt 0:02:22]} 33. Rb7 {[%emt 0:03:44]} Nxf2 {[%emt 0:00:32]} 34. Rxe7+ {[%emt 0:00:05]} Kg8 {[%emt 0:00:12]} 35. Re2 {[%emt 0:00:59]} Nxg4+ {[%emt 0:02:49]} 36. Kh1 {[%emt 0:00:57]} Ra1 {[%emt 0:01:08]} 37. Kg2 {[%emt 0:00:48]} Ne5 {[%emt 0:01:20]} 38. Rb3 {[%emt 0:00:09]} f4 {[%emt 0:00:34]} 39. Re4 {[%emt 0:00:52]} f3+ {[%emt 0:01:53]} 40. Kg3 {[%emt 0:00:08]} Bc5 {[%emt 0:00:45]} 41. Rf4 {[%emt 0:00:53]} g5 {[%emt 0:00:40]} 42. Rfxf3 {[%emt 0:00:13]} Nxf3 {[%emt 0:00:19]} 43. Rxf3 {[%emt 0:00:04]} Kg7 {[%emt 0:00:09]} 44. Kg4 {[%emt 0:00:10]} Re1 {[%emt 0:01:01]} 45. Bd3 {[%emt 0:01:01]} Rg1+ {[%emt 0:00:30]} 46. Kh5 {[%emt 0:00:34]} Rg2 {[%emt 0:00:27]} 47. h3 {[%emt 0:00:07]} g4 {[%emt 0:00:29]} 48. Rf4 {[%emt 0:01:13]} gxh3 {[%emt 0:00:34]} 49. Rg4+ {[%emt 0:00:08]} Kf6 {[%emt 0:00:23]} 50. Rf4+ {[%emt 0:00:52]} Ke5 {[%emt 0:00:20]} 51. Re4+ {[%emt 0:00:03]} Kf6 {[%emt 0:00:06]} 52. Rf4+ {[%emt 0:00:13]} Ke7 {[%emt 0:00:10]} 53. Re4+ {[%emt 0:00:41]} Kf7 {[%emt 0:00:29]} 54. Bf1 {[%emt 0:01:10]} Rg5+ {[%emt 0:01:24]} 55. Kxh6 {[%emt 0:00:22]} h2 {[%emt 0:00:42]} 56. Rh4 {[%emt 0:00:38]} Rg1 {[%emt 0:00:21]} 57. Rxh2 {[%emt 0:00:08]} Rxf1 {[%emt 0:00:01]} 58. Re2 {[%emt 0:00:50]} Rf4 {[%emt 0:00:25]} 59. Rc2 {[%emt 0:00:33]} Kf6 {[%emt 0:00:06]} 60. Kh5 {[%emt 0:00:07]} Bf2 {[%emt 0:00:06]} 0-1

[Event "FIDE World School-ch O-11 2025"]
[Site "Vrnjacka Banja"]
[Date "2025.03.22"]
[Round "3.3"]
[White "Adamovic, Nikola"]
[Black "Eshkol, Idan"]
[Result "1-0"]
[Annotator "NA RC"]
[ECO "C54"]
[WhiteElo "1996"]
[BlackElo "1821"]
[PlyCount "117"]
[EventDate "2025.03.19"]
[EventType "swiss"]
[EventCountry "SRB"]
[SourceTitle "playchess.com"]
[Source "ChessBase"]
[SourceQuality "1"]
[TimeControl "5400+30"]

1. e4 {[%emt 0:00:09]} e5 {[%emt 0:00:04]} 2. Nf3 {[%emt 0:00:06]} Nc6 {[%emt 0:00:04]} 3. Bc4 {[%emt 0:00:06]} Nf6 {[%emt 0:00:04]} 4. d3 {[%emt 0:00:04]} Bc5 {[%emt 0:00:07]} 5. c3 {[%emt 0:00:03]} d6 {[%emt 0:00:08]} 6. O-O {[%emt 0:00:06]} O-O {[%emt 0:00:48]} 7. h3 {[%emt 0:00:11]} h6 {[%emt 0:00:22]} 8. Re1 {[%emt 0:02:00]} Re8 {[%emt 0:01:30]} 9. Nbd2 {[%emt 0:04:42]} Bb6 {[%emt 0:08:43]} 10. Nf1 {[%emt 0:02:57]} d5 {[%emt 0:03:34]} 11. exd5 {[%emt 0:00:40]} Nxd5 {[%emt 0:00:05]} 12. d4 {[%emt 0:01:46]} e4 {[%emt 0:08:34]} 13. N3d2 {[%emt 0:00:09]} Nf6 {[%emt 0:08:52]} 14. Ng3 {[%emt 0:03:26]} e3 {[%emt 0:16:52]} 15. Rxe3 {[%emt 0:01:50]} Rxe3 {[%emt 0:00:38]} 16. fxe3 {[%emt 0:00:02]} Qd6 {[%emt 0:00:25]} 17. Qf3 {[%emt 0:01:36]} Be6 {[%emt 0:03:07]} 18. Nge4 {[%emt 0:03:47]} Nxe4 {[%emt 0:00:18]} 19. Nxe4 {[%emt 0:00:23]} Qe7 {[%emt 0:00:09]} 20. Bxe6 {[%emt 0:02:15]} fxe6 {[%emt 0:00:06]} 21. Bd2 {[%emt 0:00:39]} Rf8 {[%emt 0:00:06]} 22. Qe2 {[%emt 0:03:06]} Qd7 {[%emt 0:01:00]} 23. Rf1 {[%emt 0:02:12]} Rxf1+ {[%emt 0:00:23]} 24. Qxf1 {[%emt 0:03:41]} Qd5 {[%emt 0:00:08]} 25. Qb1 {[%emt 0:03:19]} e5 {[%emt 0:01:14]} 26. b3 {[%emt 0:02:10]} exd4 {[%emt 0:00:09]} 27. cxd4 {[%emt 0:01:32]} Ne7 {[%emt 0:01:45]} 28. Qd3 {[%emt 0:01:31]} Kh8 {[%emt 0:00:15]} 29. Nc3 {[%emt 0:07:55]} Qd7 {[%emt 0:01:35]} 30. a4 {[%emt 0:10:00]} c6 {[%emt 0:01:26]} 31. b4 {[%emt 0:03:15]} a6 {[%emt 0:01:52]} 32. Ne2 {[%emt 0:01:57]} c5 {[%emt 0:00:59]} 33. bxc5 {[%emt 0:01:07]} Bxc5 {[%emt 0:00:06]} 34. Qc4 {[%emt 0:00:18]} Bd6 {[%emt 0:01:03]} 35. a5 {[%emt 0:00:55]} Qf5 {[%emt 0:00:26]} 36. Qb3 {[%emt 0:02:47]} Qe4 {[%emt 0:01:58]} 37. Nc1 {[%emt 0:02:00]} Ng6 {[%emt 0:06:52]} 38. Qd3 {[%emt 0:00:37]} Qc6 {[%emt 0:00:05]} 39. d5 {[%emt 0:00:36]} Qe8 {[%emt 0:00:19]} 40. Bc3 {[%emt 0:00:40]} Qf7 {[%emt 0:01:00]} 41. Ne2 {[%emt 0:00:58]} Ne7 {[%emt 0:01:56]} 42. e4 {[%emt 0:00:13]} Ng6 {[%emt 0:00:08]} 43. Qf3 {[%emt 0:02:24]} Qe7 {[%emt 0:00:24]} 44. Qf5 {[%emt 0:02:12]} Ne5 {[%emt 0:02:11]} 45. Nf4 {[%emt 0:01:48]} Nf3+ {[%emt 0:03:16]} 46. gxf3 {[%emt 0:00:17]} Bxf4 {[%emt 0:28:24]} 47. Qxf4 {[%emt 0:02:19]} Qc5+ {[%emt 0:00:00]} 48. Kg2 {[%emt 0:00:07]} Qxc3 {[%emt 0:00:00]} 49. d6 {[%emt 0:00:41]} Qc2+ {[%emt 0:00:00]} 50. Kg3 {[%emt 0:00:25]} Qd1 {[%emt 0:00:00]} 51. d7 {[%emt 0:05:58]} Qg1+ {[%emt 0:00:00]} 52. Kh4 {[%emt 0:00:01]} g5+ {[%emt 0:00:00]} 53. Kh5 {[%emt 0:00:04]} gxf4 {[%emt 0:00:00]} 54. d8=Q+ {[%emt 0:00:07]} Kg7 {[%emt 0:00:00]} 55. Qe7+ {[%emt 0:01:13]} Kg8 {[%emt 0:00:00]} 56. Kxh6 {[%emt 0:00:22]} Qg5+ {[%emt 0:00:00]} 57. Kxg5 {[%emt 0:00:10]} b6 {[%emt 0:00:00]} 58. Kh6 {[%emt 0:00:07]} bxa5 {[%emt 0:06:00]} 59. Qe8# {[%emt 0:00:07]} 1-0

[Event "FIDE World School-ch O-11 2025"]
[Site "Vrnjacka Banja"]
[Date "2025.03.22"]
[Round "3.4"]
[White "Bai, Moxuan"]
[Black "Yildiz, Ali Aras"]
[Result "1/2-1/2"]
[Annotator "NA RC"]
[ECO "B76"]
[WhiteElo "1726"]
[BlackElo "1932"]
[PlyCount "92"]
[EventDate "2025.03.19"]
[EventType "swiss"]
[EventCountry "SRB"]
[SourceTitle "playchess.com"]
[Source "ChessBase"]
[SourceQuality "1"]
[TimeControl "5400+30"]

1. e4 {[%emt 0:04:42]} c5 {[%emt 0:00:06]} 2. Nf3 {[%emt 0:00:11]} d6 {[%emt 0:00:06]} 3. d4 {[%emt 0:00:08]} cxd4 {[%emt 0:00:17]} 4. Nxd4 {[%emt 0:00:05]} Nf6 {[%emt 0:00:57]} 5. Nc3 {[%emt 0:00:09]} g6 {[%emt 0:00:12]} 6. Be3 {[%emt 0:00:13]} Bg7 {[%emt 0:01:25]} 7. f3 {[%emt 0:00:19]} Nc6 {[%emt 0:02:24]} 8. Qd2 {[%emt 0:00:51]} O-O {[%emt 0:01:16]} 9. O-O-O {[%emt 0:00:41]} d5 {[%emt 0:02:34]} 10. exd5 {[%emt 1:28:11]} Nxd5 {[%emt 0:00:36]} 11. Nxc6 {[%emt 0:00:00]} bxc6 {[%emt 0:00:37]} 12. Nxd5 {[%emt 0:00:00]} cxd5 {[%emt 0:00:12]} 13. Qxd5 {[%emt 0:00:00]} Qc7 {[%emt 0:00:35]} 14. Qc5 {[%emt 0:00:00]} Qb7 {[%emt 0:02:34]} 15. Qb5 {[%emt 0:00:00]} Qxb5 {[%emt 0:03:21]} 16. Bxb5 {[%emt 0:00:00]} Rb8 {[%emt 0:00:35]} 17. Bc4 {[%emt 0:00:00]} Bxb2+ {[%emt 0:06:24]} 18. Kd2 {[%emt 0:00:00]} a5 {[%emt 0:08:27]} 19. Bb3 {[%emt 0:00:00]} Rd8+ {[%emt 0:10:19]} 20. Ke2 {[%emt 0:00:00]} Ba6+ {[%emt 0:06:43]} 21. Kf2 {[%emt 0:00:00]} Bc3 {[%emt 0:06:39]} 22. Bc5 {[%emt 0:00:00]} e6 {[%emt 0:12:57]} 23. Ke3 {[%emt 0:00:00]} Rdc8 {[%emt 0:03:59]} 24. Bd4 {[%emt 0:00:00]} Bb5 {[%emt 0:04:08]} 25. a4 {[%emt 0:00:00]} Ba6 {[%emt 0:25:37]} 26. Bxc3 {[%emt 0:00:00]} Rxc3+ {[%emt 0:00:00]} 27. Kd2 {[%emt 0:00:00]} Rc6 {[%emt 0:00:00]} 28. Rhe1 {[%emt 0:00:00]} Rc5 {[%emt 0:00:00]} 29. Re4 {[%emt 0:00:00]} Rb7 {[%emt 0:00:00]} 30. Rde1 {[%emt 0:00:00]} Kf8 {[%emt 0:00:00]} 31. Re5 {[%emt 0:00:00]} Rbc7 {[%emt 0:00:00]} 32. f4 {[%emt 0:00:00]} Ke7 {[%emt 0:00:00]} 33. Rxc5 {[%emt 0:00:00]} Rxc5 {[%emt 0:00:00]} 34. Re5 {[%emt 0:00:00]} Kd6 {[%emt 0:00:00]} 35. Rxc5 {[%emt 0:00:00]} Kxc5 {[%emt 0:00:00]} 36. Kc3 {[%emt 0:00:00]} h6 {[%emt 0:02:15]} 37. h4 {[%emt 0:00:00]} h5 {[%emt 0:00:31]} 38. g3 {[%emt 0:00:00]} Bb7 {[%emt 0:00:15]} 39. Bc4 {[%emt 0:00:00]} Bc6 {[%emt 0:00:37]} 40. f5 {[%emt 0:00:00]} Bxa4 {[%emt 0:02:20]} 41. fxg6 {[%emt 0:00:00]} fxg6 {[%emt 0:00:07]} 42. Bxe6 {[%emt 0:00:00]} Be8 {[%emt 0:01:13]} 43. g4 {[%emt 0:00:00]} g5 {[%emt 0:00:45]} 44. gxh5 {[%emt 0:00:00]} gxh4 {[%emt 0:00:28]} 45. h6 {[%emt 0:00:00]} Bg6 {[%emt 0:01:29]} 46. Bg8 h3 {[%emt 0:00:30]} 1/2-1/2

[Event "FIDE World School-ch O-11 2025"]
[Site "Vrnjacka Banja"]
[Date "2025.03.22"]
[Round "3.5"]
[White "Lishoy Gengis Paratazham, Dildarav"]
[Black "Kalinichenko, German Yu"]
[Result "1/2-1/2"]
[Annotator "NA RC"]
[ECO "A34"]
[WhiteElo "2071"]
[BlackElo "1696"]
[PlyCount "58"]
[EventDate "2025.03.19"]
[EventType "swiss"]
[EventCountry "SRB"]
[SourceTitle "playchess.com"]
[Source "ChessBase"]
[SourceQuality "1"]
[TimeControl "5400+30"]

1. c4 {[%emt 0:00:13]} c5 {[%emt 0:00:15]} 2. Nf3 {[%emt 0:00:37]} Nf6 {[%emt 0:00:27]} 3. Nc3 {[%emt 1:31:10]} d5 {[%emt 0:00:16]} 4. cxd5 {[%emt 0:00:00]} Nxd5 {[%emt 0:00:09]} 5. e4 {[%emt 0:00:00]} Nc7 {[%emt 0:02:25]} 6. d4 {[%emt 0:00:00]} cxd4 {[%emt 0:04:48]} 7. Qxd4 {[%emt 0:00:00]} Qxd4 {[%emt 0:01:12]} 8. Nxd4 {[%emt 0:00:00]} e5 {[%emt 0:01:58]} 9. Ndb5 {[%emt 0:00:00]} Nxb5 {[%emt 0:00:46]} 10. Bxb5+ {[%emt 0:00:00]} Bd7 {[%emt 0:01:48]} 11. Be3 {[%emt 0:00:00]} Bb4 $11 {[%emt 0:05:34]} 12. Bc4 {[%emt 0:00:00]} O-O {[%emt 0:01:57]} 13. O-O {[%emt 0:00:00]} Bxc3 {[%emt 0:00:14]} 14. bxc3 {[%emt 0:00:00]} Bc6 {[%emt 0:09:18]} 15. f3 {[%emt 0:00:00]} Nd7 {[%emt 0:03:24]} 16. Rfd1 {[%emt 0:00:00]} Nf6 {[%emt 0:01:24]} 17. Bb3 {[%emt 0:00:00]} b6 {[%emt 0:03:22]} 18. a4 {[%emt 0:00:00]} Rfd8 {[%emt 0:01:19]} 19. a5 {[%emt 0:00:00]} Rxd1+ {[%emt 0:00:33]} 20. Bxd1 {[%emt 0:00:00]} Nd7 {[%emt 0:00:56]} 21. Bc2 {[%emt 0:00:00]} Kf8 {[%emt 0:02:23]} 22. Kf2 {[%emt 0:00:00]} Ke7 {[%emt 0:01:59]} 23. h4 {[%emt 0:00:00]} h5 {[%emt 0:00:40]} 24. Ra3 {[%emt 0:00:00]} Nc5 {[%emt 0:05:32]} 25. Ra1 {[%emt 0:00:37]} f6 {[%emt 0:02:11]} 26. Rb1 {[%emt 0:00:58]} Nd7 {[%emt 0:00:50]} 27. Ra1 {[%emt 0:01:38]} Nc5 {[%emt 0:00:20]} 28. Rb1 {[%emt 0:00:14]} Nd7 {[%emt 0:00:06]} 29. Ra1 {[%emt 0:00:25]} Nc5 {[%emt 0:00:21]} 1/2-1/2

[Event "FIDE World School-ch O-11 2025"]
[Site "Vrnjacka Banja"]
[Date "2025.03.22"]
[Round "3.6"]
[White "Zhauynbay, Alimzhan"]
[Black "Enkhtulga, Erdenebat"]
[Result "1-0"]
[Annotator "NA RC"]
[ECO "B22"]
[WhiteElo "1927"]
[BlackElo "1590"]
[PlyCount "94"]
[EventDate "2025.03.19"]
[EventType "swiss"]
[EventCountry "SRB"]
[SourceTitle "playchess.com"]
[Source "ChessBase"]
[SourceQuality "1"]
[TimeControl "5400+30"]

1. e4 {[%emt 0:00:03]} c5 {[%emt 0:00:09]} 2. c3 {[%emt 0:00:15]} d5 {[%emt 0:15:00]} 3. exd5 {[%emt 0:00:07]} Qxd5 {[%emt 0:00:04]} 4. d4 {[%emt 0:00:15]} Nc6 {[%emt 0:00:04]} 5. Nf3 {[%emt 0:00:30]} Bg4 {[%emt 0:00:10]} 6. dxc5 {[%emt 0:08:41]} Qxd1+ {[%emt 0:02:01]} 7. Kxd1 {[%emt 0:00:16]} e5 {[%emt 0:00:14]} 8. Be3 {[%emt 0:05:28]} f5 {[%emt 0:02:27]} 9. Be2 {[%emt 0:12:38]} f4 {[%emt 0:00:18]} 10. Bc1 {[%emt 0:00:28]} Bxc5 {[%emt 0:02:19]} 11. Ke1 {[%emt 0:02:32]} Nf6 {[%emt 0:03:45]} 12. b4 {[%emt 0:05:26]} Bd6 {[%emt 0:05:07]} 13. Nbd2 {[%emt 0:03:46]} a6 {[%emt 0:08:47]} 14. Ng5 {[%emt 0:05:08]} Bxe2 {[%emt 0:14:18]} 15. Kxe2 {[%emt 0:00:11]} O-O {[%emt 0:01:25]} 16. Nge4 {[%emt 0:04:03]} Be7 {[%emt 0:00:38]} 17. Rd1 {[%emt 0:01:54]} Rad8 {[%emt 0:01:58]} 18. a4 {[%emt 0:06:14]} Rd5 {[%emt 0:04:58]} 19. Bb2 {[%emt 0:06:29]} Rfd8 {[%emt 0:00:34]} 20. f3 {[%emt 0:01:39]} Nxe4 {[%emt 0:07:08]} 21. Nxe4 {[%emt 0:00:59]} Kf7 {[%emt 0:01:25]} 22. Rd2 {[%emt 0:03:31]} Rxd2+ {[%emt 0:00:27]} 23. Nxd2 {[%emt 0:00:03]} Ke6 {[%emt 0:00:53]} 24. Nb3 {[%emt 0:04:32]} Kf5 {[%emt 0:07:59]} 25. b5 {[%emt 0:02:28]} Na7 {[%emt 0:00:06]} 26. c4 {[%emt 0:00:20]} Rc8 {[%emt 0:02:30]} 27. Rc1 {[%emt 0:01:31]} Bb4 {[%emt 0:00:27]} 28. g4+ {[%emt 0:05:12]} Ke6 {[%emt 0:00:55]} 29. Kd3 {[%emt 0:01:09]} Rd8+ {[%emt 0:02:12]} 30. Ke4 {[%emt 0:00:51]} axb5 {[%emt 0:00:56]} 31. axb5 {[%emt 0:00:35]} Bd6 {[%emt 0:01:17]} 32. Ra1 {[%emt 0:04:37]} Nc8 {[%emt 0:00:24]} 33. Rd1 {[%emt 0:00:41]} b6 {[%emt 0:02:40]} 34. Bxe5 {[%emt 0:01:38]} Rd7 {[%emt 0:03:20]} 35. Nd4+ {[%emt 0:00:32]} Ke7 {[%emt 0:02:27]} 36. Nf5+ {[%emt 0:00:07]} Ke6 {[%emt 0:00:14]} 37. Bxd6 {[%emt 0:00:16]} Nxd6+ {[%emt 0:00:08]} 38. Rxd6+ {[%emt 0:00:12]} Rxd6 {[%emt 0:00:06]} 39. Nxd6 {[%emt 0:00:02]} Kxd6 {[%emt 0:00:16]} 40. Kd4 {[%emt 0:00:20]} g5 {[%emt 0:00:35]} 41. Kc3 {[%emt 0:00:53]} Kc5 {[%emt 0:00:35]} 42. Kd3 {[%emt 0:00:06]} Kb4 {[%emt 0:00:49]} 43. Kd4 {[%emt 0:00:07]} Ka4 {[%emt 0:00:10]} 44. Kd5 {[%emt 0:00:16]} h5 {[%emt 0:00:21]} 45. gxh5 {[%emt 0:00:41]} g4 {[%emt 0:00:05]} 46. Ke4 {[%emt 0:00:07]} g3 {[%emt 0:00:09]} 47. hxg3 {[%emt 0:00:01]} fxg3 {[%emt 0:00:10]} 1-0